[Event "Early-Titled-Tuesday-Blitz-August-29-2023"]
[Site "Chess.com"]
[Date "2023.08.29"]
[Round "7"]
[White "KononenkoD"]
[Black "NasirAkylbekov"]
[Result "0-1"]
[WhiteElo "2634"]
[BlackElo "2487"]
[TimeControl "180+1"]
[EndTime "9:15:55 PDT"]
[Termination "NasirAkylbekov won on time"]

1. e4 {[%clk 0:02:59.9]} 1... e5 {[%clk 0:03:00.1]} 2. Nf3 {[%clk 0:02:59.8]}
2... Nc6 {[%clk 0:02:58.7]} 3. d4 {[%clk 0:02:59.9]} 3... exd4 {[%clk
0:02:54.7]} 4. Nxd4 {[%clk 0:03:00.8]} 4... Nge7 {[%clk 0:02:50.3]} 5. Bc4
{[%clk 0:02:49.5]} 5... d6 {[%clk 0:02:44.9]} 6. O-O {[%clk 0:02:40.4]} 6...
Nxd4 {[%clk 0:02:39.6]} 7. Qxd4 {[%clk 0:02:41.3]} 7... Nc6 {[%clk 0:02:40.5]}
8. Qd1 {[%clk 0:02:38.4]} 8... Be7 {[%clk 0:02:40.3]} 9. Nc3 {[%clk 0:02:34.8]}
9... O-O {[%clk 0:02:38.8]} 10. h3 {[%clk 0:02:35.1]} 10... Be6 {[%clk 0:02:38]}
11. Bd5 {[%clk 0:02:34.6]} 11... Bf6 {[%clk 0:02:35.6]} 12. f4 {[%clk
0:02:30.6]} 12... Re8 {[%clk 0:02:31.6]} 13. Kh1 {[%clk 0:02:29.2]} 13... Bxc3
{[%clk 0:02:21.6]} 14. bxc3 {[%clk 0:02:29.1]} 14... Bxd5 {[%clk 0:02:18.5]} 15.
exd5 {[%clk 0:02:29.1]} 15... Ne7 {[%clk 0:02:18.9]} 16. f5 {[%clk 0:02:27.6]}
16... Qd7 {[%clk 0:02:10.1]} 17. Qd3 {[%clk 0:02:22.5]} 17... c6 {[%clk
0:02:06.4]} 18. c4 {[%clk 0:02:22.3]} 18... b5 {[%clk 0:02:00.6]} 19. dxc6
{[%clk 0:02:17.6]} 19... Nxc6 {[%clk 0:01:53.6]} 20. cxb5 {[%clk 0:02:16.6]}
20... Ne5 {[%clk 0:01:52.4]} 21. Qb3 {[%clk 0:02:14.4]} 21... d5 {[%clk
0:01:43.4]} 22. Bb2 {[%clk 0:02:13.6]} 22... Nc4 {[%clk 0:01:43.5]} 23. a4
{[%clk 0:01:55.5]} 23... Rac8 {[%clk 0:01:42.2]} 24. Rf2 {[%clk 0:01:42.4]}
24... Re3 {[%clk 0:01:37.7]} 25. Qb4 {[%clk 0:01:41.2]} 25... Re4 {[%clk
0:01:29.9]} 26. Qc3 {[%clk 0:01:34.4]} 26... f6 {[%clk 0:01:28.1]} 27. Rd1
{[%clk 0:01:29.3]} 27... Ne3 {[%clk 0:01:22.8]} 28. Qd2 {[%clk 0:01:28.3]} 28...
Nxd1 {[%clk 0:01:22.7]} 29. Qxd1 {[%clk 0:01:29.2]} 29... Rce8 {[%clk
0:01:21.6]} 30. Qf3 {[%clk 0:01:24.9]} 30... Qd6 {[%clk 0:01:19.7]} 31. Bc3
{[%clk 0:01:19.6]} 31... Re3 {[%clk 0:01:18.5]} 32. Qh5 {[%clk 0:01:16.6]} 32...
Re1+ {[%clk 0:01:16.4]} 33. Bxe1 {[%clk 0:01:16.3]} 33... Rxe1+ {[%clk
0:01:16.9]} 0-1

[Event "Early-Titled-Tuesday-Blitz-August-29-2023"]
[Site "Chess.com"]
[Date "2023.08.29"]
[Round "7"]
[White "TosicSrecko"]
[Black "VOneChess"]
[Result "1-0"]
[WhiteElo "2311"]
[BlackElo "2037"]
[TimeControl "180+1"]
[EndTime "9:16:00 PDT"]
[Termination "TosicSrecko won by checkmate"]

1. e4 {[%clk 0:03:00.9]} 1... c5 {[%clk 0:02:59.7]} 2. Nf3 {[%clk 0:03:01]} 2...
d6 {[%clk 0:03:00]} 3. d4 {[%clk 0:03:01.4]} 3... cxd4 {[%clk 0:03:00.9]} 4.
Nxd4 {[%clk 0:03:01.9]} 4... Nf6 {[%clk 0:03:01.6]} 5. Nc3 {[%clk 0:03:02.4]}
5... a6 {[%clk 0:03:01.4]} 6. g3 {[%clk 0:03:03]} 6... b5 {[%clk 0:02:57.9]} 7.
Bg2 {[%clk 0:03:02.1]} 7... Bb7 {[%clk 0:02:58.1]} 8. O-O {[%clk 0:03:01.6]}
8... e6 {[%clk 0:02:57.2]} 9. Re1 {[%clk 0:03:00.6]} 9... Qc7 {[%clk 0:02:56.7]}
10. a4 {[%clk 0:02:57.6]} 10... b4 {[%clk 0:02:56]} 11. Nd5 {[%clk 0:02:57.9]}
11... exd5 {[%clk 0:02:42.7]} 12. exd5+ {[%clk 0:02:58.8]} 12... Kd8 {[%clk
0:02:43.1]} 13. Qe2 {[%clk 0:02:39.9]} 13... Nbd7 {[%clk 0:02:41.2]} 14. Bg5
{[%clk 0:02:35.7]} 14... Kc8 {[%clk 0:02:39.5]} 15. Qe8+ {[%clk 0:02:32.3]}
15... Qd8 {[%clk 0:02:39.7]} 16. Qxf7 {[%clk 0:02:31.5]} 16... Ne5 {[%clk
0:01:59.2]} 17. Rxe5 {[%clk 0:02:29.9]} 17... dxe5 {[%clk 0:01:56.5]} 18. Bh3+
{[%clk 0:01:51.5]} 18... Kb8 {[%clk 0:01:53.6]} 19. Nc6+ {[%clk 0:01:51.7]}
19... Bxc6 {[%clk 0:01:48.6]} 20. dxc6 {[%clk 0:01:52.6]} 20... Ra7 {[%clk
0:01:35.7]} 21. Qc4 {[%clk 0:01:52]} 21... Be7 {[%clk 0:01:26.8]} 22. Be3 {[%clk
0:01:45.4]} 22... Qd5 {[%clk 0:00:30.2]} 23. Bxa7+ {[%clk 0:01:28]} 23... Kxa7
{[%clk 0:00:31.1]} 24. Qe2 {[%clk 0:01:28.1]} 24... Qxc6 {[%clk 0:00:27.4]} 25.
Qxe5 {[%clk 0:01:28]} 25... Bd6 {[%clk 0:00:24.3]} 26. Qe3+ {[%clk 0:01:27.8]}
26... Bc5 {[%clk 0:00:23.5]} 27. Qg5 {[%clk 0:01:28.4]} 27... Bxf2+ {[%clk
0:00:13.2]} 28. Kf1 {[%clk 0:01:28.7]} 28... Qc4+ {[%clk 0:00:08.8]} 29. Kg2
{[%clk 0:01:28.9]} 29... Qe4+ {[%clk 0:00:09.5]} 30. Kf1 {[%clk 0:01:29.2]}
30... Qc4+ {[%clk 0:00:04]} 31. Kg2 {[%clk 0:01:29.2]} 31... Qe4+ {[%clk
0:00:04.9]} 32. Kf1 {[%clk 0:01:29.4]} 32... Re8 {[%clk 0:00:03]} 33. Kxf2
{[%clk 0:01:22.8]} 33... Qe2+ {[%clk 0:00:02.1]} 34. Kg1 {[%clk 0:01:23.2]}
34... Ne4 {[%clk 0:00:01.7]} 35. Qxg7+ {[%clk 0:01:18.9]} 35... Kb8 {[%clk
0:00:02.3]} 36. Qf7 {[%clk 0:01:16.3]} 36... Nd2 {[%clk 0:00:02]} 37. Bg2 {[%clk
0:01:09.7]} 37... Nc4 {[%clk 0:00:01.3]} 38. Qb7# {[%clk 0:01:08.7]} 1-0

[Event "Early-Titled-Tuesday-Blitz-August-29-2023"]
[Site "Chess.com"]
[Date "2023.08.29"]
[Round "7"]
[White "Verony64"]
[Black "MusicCityMaster"]
[Result "0-1"]
[WhiteElo "2243"]
[BlackElo "2430"]
[TimeControl "180+1"]
[EndTime "9:16:01 PDT"]
[Termination "MusicCityMaster won by resignation"]

1. e4 {[%clk 0:03:00.9]} 1... c5 {[%clk 0:02:59.8]} 2. Nc3 {[%clk 0:02:59.7]}
2... d6 {[%clk 0:02:52.8]} 3. d3 {[%clk 0:02:59.9]} 3... Nc6 {[%clk 0:02:51.1]}
4. g3 {[%clk 0:03:00]} 4... g6 {[%clk 0:02:51.1]} 5. Bg2 {[%clk 0:03:00.5]} 5...
Bg7 {[%clk 0:02:51.8]} 6. f4 {[%clk 0:03:00]} 6... Bd7 {[%clk 0:02:52.5]} 7. Nf3
{[%clk 0:03:00.5]} 7... Qc8 {[%clk 0:02:50.4]} 8. O-O {[%clk 0:02:55.9]} 8... h5
{[%clk 0:02:48.3]} 9. Be3 {[%clk 0:02:51]} 9... Nd4 {[%clk 0:02:47.5]} 10. e5
{[%clk 0:02:11]} 10... Nf5 {[%clk 0:02:43.5]} 11. Bf2 {[%clk 0:02:07.5]} 11...
Bc6 {[%clk 0:02:22]} 12. Ne4 {[%clk 0:01:44.4]} 12... b6 {[%clk 0:02:20.6]} 13.
exd6 {[%clk 0:01:42.7]} 13... exd6 {[%clk 0:02:10.7]} 14. Re1 {[%clk 0:01:41.6]}
14... Nge7 {[%clk 0:02:10]} 15. Qe2 {[%clk 0:01:18.1]} 15... O-O {[%clk
0:01:59]} 16. Nxd6 {[%clk 0:01:11.5]} 16... Nxd6 {[%clk 0:01:59.9]} 17. Qxe7
{[%clk 0:01:11]} 17... Nf5 {[%clk 0:01:59.4]} 18. Qg5 {[%clk 0:01:05.6]} 18...
Bxb2 {[%clk 0:01:19]} 19. Rab1 {[%clk 0:00:56.7]} 19... Bg7 {[%clk 0:01:18.4]}
20. Ne5 {[%clk 0:00:46.3]} 20... Bxg2 {[%clk 0:01:17.5]} 21. Kxg2 {[%clk
0:00:42.6]} 21... f6 {[%clk 0:01:17.6]} 22. Qxg6 {[%clk 0:00:31.4]} 22... fxe5
{[%clk 0:01:17.3]} 23. Rxe5 {[%clk 0:00:19.2]} 23... Qb7+ {[%clk 0:01:11.6]} 24.
Kg1 {[%clk 0:00:15.1]} 24... Qf7 {[%clk 0:01:01.5]} 25. Qg5 {[%clk 0:00:09.5]}
25... Rae8 {[%clk 0:00:47.3]} 26. Rbe1 {[%clk 0:00:09.2]} 26... Rxe5 {[%clk
0:00:47.1]} 27. Rxe5 {[%clk 0:00:09.9]} 27... Nd4 {[%clk 0:00:40.8]} 28. Re7
{[%clk 0:00:08.8]} 28... Nf3+ {[%clk 0:00:35.5]} 29. Kg2 {[%clk 0:00:08.5]}
29... Nxg5 {[%clk 0:00:35.2]} 0-1

[Event "Early-Titled-Tuesday-Blitz-August-29-2023"]
[Site "Chess.com"]
[Date "2023.08.29"]
[Round "7"]
[White "BogdanDeac"]
[Black "AdvanceGuard4"]
[Result "1-0"]
[WhiteElo "3007"]
[BlackElo "2640"]
[TimeControl "180+1"]
[EndTime "9:16:09 PDT"]
[Termination "BogdanDeac won by checkmate"]

1. b3 {[%clk 0:03:00.9]} 1... e5 {[%clk 0:02:58.1]} 2. Bb2 {[%clk 0:03:01.5]}
2... Nc6 {[%clk 0:02:58.3]} 3. Nf3 {[%clk 0:03:02.1]} 3... d6 {[%clk 0:02:54.9]}
4. c4 {[%clk 0:03:01]} 4... g6 {[%clk 0:02:54.2]} 5. e3 {[%clk 0:03:00.4]} 5...
Bg7 {[%clk 0:02:54.1]} 6. d4 {[%clk 0:03:00.1]} 6... Nge7 {[%clk 0:02:53.3]} 7.
dxe5 {[%clk 0:02:59.2]} 7... Nxe5 {[%clk 0:02:50.3]} 8. Nxe5 {[%clk 0:02:56.1]}
8... Bxe5 {[%clk 0:02:51.2]} 9. Nc3 {[%clk 0:02:54.9]} 9... Bf5 {[%clk
0:02:42.8]} 10. Qd2 {[%clk 0:02:53.9]} 10... Bg7 {[%clk 0:02:34]} 11. Be2 {[%clk
0:02:52.7]} 11... O-O {[%clk 0:02:32.8]} 12. O-O-O {[%clk 0:02:44.8]} 12... a5
{[%clk 0:02:32.6]} 13. g4 {[%clk 0:02:44.9]} 13... Be6 {[%clk 0:02:30.6]} 14.
Ne4 {[%clk 0:02:28.7]} 14... Nc6 {[%clk 0:01:49.1]} 15. Bxg7 {[%clk 0:02:24.2]}
15... Kxg7 {[%clk 0:01:49.9]} 16. Qc3+ {[%clk 0:02:24.8]} 16... f6 {[%clk
0:01:44.7]} 17. g5 {[%clk 0:02:24.9]} 17... Ne5 {[%clk 0:00:48.2]} 18. Nxf6
{[%clk 0:02:18.7]} 18... Rxf6 {[%clk 0:00:39.9]} 19. gxf6+ {[%clk 0:02:18.9]}
19... Qxf6 {[%clk 0:00:40.8]} 20. f4 {[%clk 0:02:19.5]} 20... Ng4 {[%clk
0:00:25.1]} 21. Qxf6+ {[%clk 0:02:14.5]} 21... Kxf6 {[%clk 0:00:26]} 22. Bxg4
{[%clk 0:02:14.8]} 22... Bxg4 {[%clk 0:00:25.8]} 23. Rde1 {[%clk 0:02:15.2]}
23... Bf3 {[%clk 0:00:24.6]} 24. Rhg1 {[%clk 0:02:14.8]} 24... Be4 {[%clk
0:00:25.2]} 25. Kb2 {[%clk 0:02:12.7]} 25... h6 {[%clk 0:00:20.5]} 26. h4 {[%clk
0:02:12.8]} 26... h5 {[%clk 0:00:19.8]} 27. Kc3 {[%clk 0:02:09.1]} 27... Re8
{[%clk 0:00:18.2]} 28. Rg5 {[%clk 0:02:08.9]} 28... Bf5 {[%clk 0:00:17.8]} 29.
e4 {[%clk 0:01:58.2]} 29... b6 {[%clk 0:00:17]} 30. Kd4 {[%clk 0:01:53.4]} 30...
Bg4 {[%clk 0:00:10.3]} 31. a3 {[%clk 0:01:41.6]} 31... Re7 {[%clk 0:00:07.6]}
32. b4 {[%clk 0:01:41.2]} 32... axb4 {[%clk 0:00:08.5]} 33. axb4 {[%clk
0:01:41.5]} 33... Re8 {[%clk 0:00:09.2]} 34. c5 {[%clk 0:01:40.3]} 34... bxc5+
{[%clk 0:00:10.1]} 35. bxc5 {[%clk 0:01:40.6]} 35... Ra8 {[%clk 0:00:10.5]} 36.
cxd6 {[%clk 0:01:34.1]} 36... cxd6 {[%clk 0:00:11.4]} 37. e5+ {[%clk 0:01:27.2]}
37... dxe5+ {[%clk 0:00:11.2]} 38. fxe5+ {[%clk 0:01:28.1]} 38... Kf7 {[%clk
0:00:09.3]} 39. Rc1 {[%clk 0:01:08.1]} 39... Ra4+ {[%clk 0:00:06.6]} 40. Rc4
{[%clk 0:01:08.1]} 40... Ra1 {[%clk 0:00:03.1]} 41. Rc7+ {[%clk 0:01:08.1]}
41... Ke6 {[%clk 0:00:03.3]} 42. Rxg6+ {[%clk 0:01:08]} 42... Kf5 {[%clk
0:00:03.8]} 43. Rf6# {[%clk 0:01:08.3]} 1-0

[Event "Early-Titled-Tuesday-Blitz-August-29-2023"]
[Site "Chess.com"]
[Date "2023.08.29"]
[Round "7"]
[White "vovachesss"]
[Black "Rutricks"]
[Result "0-1"]
[WhiteElo "2786"]
[BlackElo "2630"]
[TimeControl "180+1"]
[EndTime "9:16:16 PDT"]
[Termination "Rutricks won by checkmate"]

1. d4 {[%clk 0:03:00.9]} 1... g6 {[%clk 0:02:57.4]} 2. g3 {[%clk 0:02:58.5]}
2... Bg7 {[%clk 0:02:57.8]} 3. Bg2 {[%clk 0:02:59.3]} 3... c6 {[%clk 0:02:58.4]}
4. Nf3 {[%clk 0:02:58.6]} 4... Nf6 {[%clk 0:02:58]} 5. O-O {[%clk 0:02:59]} 5...
O-O {[%clk 0:02:58.8]} 6. Re1 {[%clk 0:02:56.7]} 6... d5 {[%clk 0:02:58.7]} 7.
Nbd2 {[%clk 0:02:57]} 7... Bf5 {[%clk 0:02:59.1]} 8. Nh4 {[%clk 0:02:56]} 8...
Bg4 {[%clk 0:02:59.6]} 9. h3 {[%clk 0:02:54.6]} 9... Be6 {[%clk 0:03:00.2]} 10.
c3 {[%clk 0:02:52.2]} 10... Qc8 {[%clk 0:03:00.4]} 11. Kh2 {[%clk 0:02:51.7]}
11... c5 {[%clk 0:03:01.1]} 12. Nb3 {[%clk 0:02:42.4]} 12... cxd4 {[%clk
0:02:58.9]} 13. cxd4 {[%clk 0:02:36.5]} 13... Ne4 {[%clk 0:02:59.2]} 14. Be3
{[%clk 0:02:34.3]} 14... Nc6 {[%clk 0:02:59.1]} 15. Rc1 {[%clk 0:02:27.5]} 15...
Qd8 {[%clk 0:02:59.2]} 16. Nf3 {[%clk 0:02:17.2]} 16... Qb6 {[%clk 0:02:38.3]}
17. Nfd2 {[%clk 0:02:13]} 17... f5 {[%clk 0:02:22.1]} 18. Nxe4 {[%clk
0:02:07.8]} 18... fxe4 {[%clk 0:02:19.1]} 19. Bxe4 {[%clk 0:01:57.4]} 19... dxe4
{[%clk 0:02:19.4]} 20. Nc5 {[%clk 0:01:40.4]} 20... Bd5 {[%clk 0:01:59.8]} 21.
Nd7 {[%clk 0:01:39.2]} 21... Qd8 {[%clk 0:02:00.4]} 22. Nxf8 {[%clk 0:01:39.2]}
22... Qxf8 {[%clk 0:01:58.8]} 23. a3 {[%clk 0:01:17]} 23... Qf5 {[%clk
0:01:58.6]} 24. Qd2 {[%clk 0:01:12.7]} 24... h5 {[%clk 0:01:51.1]} 25. Kg2
{[%clk 0:00:58.7]} 25... Rf8 {[%clk 0:01:50.1]} 26. Qc3 {[%clk 0:00:42]} 26...
Kh7 {[%clk 0:01:19.2]} 27. b4 {[%clk 0:00:41]} 27... a6 {[%clk 0:01:19.1]} 28.
a4 {[%clk 0:00:40.8]} 28... Be6 {[%clk 0:01:08]} 29. Rh1 {[%clk 0:00:34.5]}
29... Rd8 {[%clk 0:01:08.1]} 30. b5 {[%clk 0:00:30.8]} 30... axb5 {[%clk
0:01:06.4]} 31. g4 {[%clk 0:00:27.3]} 31... Qd5 {[%clk 0:01:04.9]} 32. axb5
{[%clk 0:00:27.4]} 32... Qxb5 {[%clk 0:01:04.2]} 33. Rb1 {[%clk 0:00:28]} 33...
Qxe2 {[%clk 0:01:04.1]} 34. Bg5 {[%clk 0:00:22.4]} 34... Bxd4 {[%clk 0:00:44.9]}
35. Qg3 {[%clk 0:00:21.1]} 35... Qf3+ {[%clk 0:00:44.5]} 36. Qxf3 {[%clk
0:00:19.1]} 36... exf3+ {[%clk 0:00:45.4]} 37. Kg3 {[%clk 0:00:20]} 37... h4+
{[%clk 0:00:32.8]} 38. Kxh4 {[%clk 0:00:16.7]} 38... Bxf2# {[%clk 0:00:32.4]}
0-1

[Event "Early-Titled-Tuesday-Blitz-August-29-2023"]
[Site "Chess.com"]
[Date "2023.08.29"]
[Round "7"]
[White "fabianvivasz"]
[Black "tteshan"]
[Result "0-1"]
[WhiteElo "2435"]
[BlackElo "2580"]
[TimeControl "180+1"]
[EndTime "9:16:21 PDT"]
[Termination "tteshan won by checkmate"]

1. e4 {[%clk 0:02:55]} 1... c5 {[%clk 0:03:00]} 2. Nf3 {[%clk 0:02:53.5]} 2...
Nc6 {[%clk 0:03:00.7]} 3. d4 {[%clk 0:02:53.7]} 3... cxd4 {[%clk 0:03:01.6]} 4.
Nxd4 {[%clk 0:02:53.7]} 4... g6 {[%clk 0:03:02.3]} 5. c4 {[%clk 0:02:53.3]} 5...
Bg7 {[%clk 0:03:02.6]} 6. Nc2 {[%clk 0:02:53.9]} 6... Nf6 {[%clk 0:03:02.6]} 7.
Nc3 {[%clk 0:02:53.7]} 7... O-O {[%clk 0:03:03.3]} 8. Be2 {[%clk 0:02:53.8]}
8... d6 {[%clk 0:03:04]} 9. O-O {[%clk 0:02:53.9]} 9... Be6 {[%clk 0:03:04.6]}
10. Be3 {[%clk 0:02:48.2]} 10... Rc8 {[%clk 0:03:04.8]} 11. f3 {[%clk 0:02:41]}
11... a6 {[%clk 0:03:05]} 12. Qd2 {[%clk 0:02:40.4]} 12... Re8 {[%clk
0:03:03.1]} 13. b3 {[%clk 0:02:39.3]} 13... Qa5 {[%clk 0:03:02.9]} 14. Rab1
{[%clk 0:02:03.4]} 14... Nd7 {[%clk 0:02:21]} 15. b4 {[%clk 0:01:52.5]} 15...
Qc7 {[%clk 0:02:00.9]} 16. f4 {[%clk 0:01:29.5]} 16... f5 {[%clk 0:01:46.2]} 17.
Nd5 {[%clk 0:01:02.5]} 17... Bxd5 {[%clk 0:01:40.4]} 18. exd5 {[%clk 0:01:00.4]}
18... Nd8 {[%clk 0:01:31.2]} 19. Bd4 {[%clk 0:00:57.6]} 19... Nf6 {[%clk
0:01:28.9]} 20. Rbc1 {[%clk 0:00:32.3]} 20... e5 {[%clk 0:01:23.7]} 21. dxe6
{[%clk 0:00:27.6]} 21... Nxe6 {[%clk 0:01:24]} 22. Ba1 {[%clk 0:00:21.1]} 22...
Ne4 {[%clk 0:01:18.1]} 23. Qe3 {[%clk 0:00:11.4]} 23... Bxa1 {[%clk 0:01:08.4]}
24. Nxa1 {[%clk 0:00:11.2]} 24... a5 {[%clk 0:01:02.1]} 25. a3 {[%clk
0:00:09.8]} 25... axb4 {[%clk 0:01:02]} 26. axb4 {[%clk 0:00:10.4]} 26... Ra8
{[%clk 0:01:02]} 27. Nb3 {[%clk 0:00:09.7]} 27... Ra3 {[%clk 0:00:55.6]} 28. Ra1
{[%clk 0:00:09.4]} 28... Rea8 {[%clk 0:00:55.4]} 29. Bf3 {[%clk 0:00:07.8]}
29... Qxc4 {[%clk 0:00:44.7]} 30. Nd2 {[%clk 0:00:07.5]} 30... Nxd2 {[%clk
0:00:24.3]} 31. Rxa3 {[%clk 0:00:06.2]} 31... Qxf1# {[%clk 0:00:23.6]} 0-1

[Event "Early-Titled-Tuesday-Blitz-August-29-2023"]
[Site "Chess.com"]
[Date "2023.08.29"]
[Round "7"]
[White "cycygogne"]
[Black "ProfessorChess101"]
[Result "0-1"]
[WhiteElo "2236"]
[BlackElo "2424"]
[TimeControl "180+1"]
[EndTime "9:16:23 PDT"]
[Termination "ProfessorChess101 won by resignation"]

1. e4 {[%clk 0:03:00.8]} 1... g6 {[%clk 0:02:54]} 2. d4 {[%clk 0:02:52.3]} 2...
Bg7 {[%clk 0:02:53.8]} 3. Nc3 {[%clk 0:02:48.5]} 3... c5 {[%clk 0:02:53.2]} 4.
Nf3 {[%clk 0:02:45]} 4... cxd4 {[%clk 0:02:52.2]} 5. Nxd4 {[%clk 0:02:45.9]}
5... Nc6 {[%clk 0:02:51.5]} 6. Be3 {[%clk 0:02:44.8]} 6... Nf6 {[%clk
0:02:50.5]} 7. Nxc6 {[%clk 0:02:43.5]} 7... bxc6 {[%clk 0:02:43.6]} 8. e5 {[%clk
0:02:43.6]} 8... Nd5 {[%clk 0:02:34.1]} 9. Nxd5 {[%clk 0:02:42.4]} 9... cxd5
{[%clk 0:02:35]} 10. Qxd5 {[%clk 0:02:42.7]} 10... Rb8 {[%clk 0:02:35.4]} 11.
Bxa7 {[%clk 0:02:41.1]} 11... Rxb2 {[%clk 0:02:27.4]} 12. Bd4 {[%clk 0:02:40.1]}
12... Rxc2 {[%clk 0:02:03.1]} 13. Bd3 {[%clk 0:02:36.6]} 13... e6 {[%clk
0:01:51.3]} 14. Qa8 {[%clk 0:02:36.3]} 14... Rc6 {[%clk 0:01:35.9]} 15. O-O
{[%clk 0:02:36.1]} 15... O-O {[%clk 0:01:35.9]} 16. Bb5 {[%clk 0:02:33.3]} 16...
Rc2 {[%clk 0:01:23.6]} 17. a4 {[%clk 0:02:30.1]} 17... Qh4 {[%clk 0:01:15.1]}
18. Qa7 {[%clk 0:02:22.4]} 18... d6 {[%clk 0:01:04.7]} 19. Rac1 {[%clk
0:02:00.4]} 19... Rxc1 {[%clk 0:00:50.1]} 20. Rxc1 {[%clk 0:02:01.3]} 20... Qe4
{[%clk 0:00:38.5]} 21. Bc6 {[%clk 0:01:47.8]} 21... Qf4 {[%clk 0:00:30.4]} 22.
Be3 {[%clk 0:01:36.9]} 22... Qxe5 {[%clk 0:00:28.7]} 23. a5 {[%clk 0:01:36.4]}
23... d5 {[%clk 0:00:22.4]} 24. a6 {[%clk 0:01:25.4]} 24... d4 {[%clk
0:00:22.6]} 25. Bd2 {[%clk 0:01:25.8]} 25... Qe2 {[%clk 0:00:21]} 26. Bf4 {[%clk
0:01:12.3]} 26... Bxa6 {[%clk 0:00:14.8]} 27. Bf3 {[%clk 0:01:06.2]} 27... Qb5
{[%clk 0:00:10.5]} 28. h4 {[%clk 0:01:00.3]} 28... d3 {[%clk 0:00:08.1]} 29. Bd6
{[%clk 0:00:56.6]} 29... Rd8 {[%clk 0:00:04.1]} 30. Qe7 {[%clk 0:00:52]} 30...
Qd7 {[%clk 0:00:03.5]} 31. Ra1 {[%clk 0:00:42.7]} 31... Qxd6 {[%clk 0:00:02.9]}
0-1

[Event "Early-Titled-Tuesday-Blitz-August-29-2023"]
[Site "Chess.com"]
[Date "2023.08.29"]
[Round "7"]
[White "Miguelitro69"]
[Black "viktorgen2021"]
[Result "0-1"]
[WhiteElo "2293"]
[BlackElo "2446"]
[TimeControl "180+1"]
[EndTime "9:16:25 PDT"]
[Termination "viktorgen2021 won by resignation"]

1. e4 {[%clk 0:03:00.9]} 1... d5 {[%clk 0:02:55.1]} 2. exd5 {[%clk 0:03:00.1]}
2... Nf6 {[%clk 0:02:54.7]} 3. Bb5+ {[%clk 0:02:58.2]} 3... Nbd7 {[%clk
0:02:54.1]} 4. c4 {[%clk 0:02:56.5]} 4... a6 {[%clk 0:02:53.8]} 5. Ba4 {[%clk
0:02:56.3]} 5... b5 {[%clk 0:02:54.4]} 6. cxb5 {[%clk 0:02:55]} 6... Nxd5 {[%clk
0:02:55.1]} 7. Nf3 {[%clk 0:02:51.1]} 7... N5b6 {[%clk 0:02:54.7]} 8. Bb3 {[%clk
0:02:50.8]} 8... axb5 {[%clk 0:02:51]} 9. O-O {[%clk 0:02:51.3]} 9... e6 {[%clk
0:02:51.1]} 10. d4 {[%clk 0:02:51.3]} 10... c5 {[%clk 0:02:48.3]} 11. Nc3 {[%clk
0:02:49.1]} 11... c4 {[%clk 0:02:47.3]} 12. Bc2 {[%clk 0:02:48.5]} 12... b4
{[%clk 0:02:47.6]} 13. Ne4 {[%clk 0:02:47.8]} 13... Bb7 {[%clk 0:02:44.8]} 14.
Bf4 {[%clk 0:02:42.1]} 14... Nf6 {[%clk 0:02:31]} 15. Nc5 {[%clk 0:02:34.3]}
15... Bc6 {[%clk 0:02:24.7]} 16. Ne5 {[%clk 0:02:31.4]} 16... Bb5 {[%clk
0:02:22.4]} 17. Re1 {[%clk 0:02:19.7]} 17... Nbd5 {[%clk 0:02:17.6]} 18. Bg3
{[%clk 0:02:19.2]} 18... Be7 {[%clk 0:02:15.7]} 19. Qe2 {[%clk 0:02:13.3]} 19...
O-O {[%clk 0:02:08.3]} 20. Nxc4 {[%clk 0:02:12.9]} 20... Nb6 {[%clk 0:01:46.3]}
21. Bd3 {[%clk 0:01:56.1]} 21... Bxc4 {[%clk 0:01:41.9]} 22. Bxc4 {[%clk
0:01:51]} 22... Qxd4 {[%clk 0:01:40.4]} 23. Nxe6 {[%clk 0:01:49.7]} 23... Qxc4
{[%clk 0:01:32.1]} 24. Nxf8 {[%clk 0:01:46.8]} 24... Bxf8 {[%clk 0:01:33]} 25.
Qf3 {[%clk 0:01:43.7]} 25... Rxa2 {[%clk 0:01:27.7]} 26. Rxa2 {[%clk 0:01:39]}
26... Qxa2 {[%clk 0:01:28.6]} 27. b3 {[%clk 0:01:39.7]} 27... Qb2 {[%clk
0:01:19.6]} 28. h4 {[%clk 0:01:35.7]} 28... Nbd5 {[%clk 0:01:15.2]} 29. Be5
{[%clk 0:01:32]} 29... Qc2 {[%clk 0:01:04]} 30. g3 {[%clk 0:01:15.3]} 30... h6
{[%clk 0:00:55.3]} 31. Rd1 {[%clk 0:01:12.7]} 31... Bc5 {[%clk 0:00:51.3]} 32.
Kg2 {[%clk 0:00:34.7]} 32... Bxf2 {[%clk 0:00:44.1]} 33. Rxd5 {[%clk 0:00:34]}
33... Nxd5 {[%clk 0:00:24.7]} 34. Qxd5 {[%clk 0:00:33.4]} 34... Bd4+ {[%clk
0:00:19.4]} 35. Kh3 {[%clk 0:00:33]} 35... Bxe5 {[%clk 0:00:19.7]} 36. Qxe5
{[%clk 0:00:32.3]} 36... Qxb3 {[%clk 0:00:20]} 37. Qe8+ {[%clk 0:00:31.2]} 37...
Kh7 {[%clk 0:00:20.3]} 38. Qe4+ {[%clk 0:00:30.7]} 38... g6 {[%clk 0:00:19.9]}
39. h5 {[%clk 0:00:31.1]} 39... Qe6+ {[%clk 0:00:19]} 40. Qxe6 {[%clk
0:00:28.2]} 40... fxe6 {[%clk 0:00:19.9]} 41. hxg6+ {[%clk 0:00:28.8]} 41...
Kxg6 {[%clk 0:00:20]} 42. Kg4 {[%clk 0:00:29.7]} 42... b3 {[%clk 0:00:20.7]} 0-1

[Event "Early-Titled-Tuesday-Blitz-August-29-2023"]
[Site "Chess.com"]
[Date "2023.08.29"]
[Round "7"]
[White "Zhigalko_Sergei"]
[Black "Witik"]
[Result "1-0"]
[WhiteElo "2942"]
[BlackElo "2797"]
[TimeControl "180+1"]
[EndTime "9:16:30 PDT"]
[Termination "Zhigalko_Sergei won on time"]

1. e4 {[%clk 0:03:00.9]} 1... e5 {[%clk 0:03:00.1]} 2. Nf3 {[%clk 0:03:00.7]}
2... Nc6 {[%clk 0:03:00.7]} 3. Bc4 {[%clk 0:02:57.4]} 3... Nf6 {[%clk
0:03:00.5]} 4. d3 {[%clk 0:02:57.3]} 4... Bc5 {[%clk 0:02:59]} 5. O-O {[%clk
0:02:57.4]} 5... d6 {[%clk 0:02:59.5]} 6. c3 {[%clk 0:02:56]} 6... a6 {[%clk
0:02:58.7]} 7. Bb3 {[%clk 0:02:54.8]} 7... b5 {[%clk 0:02:58.4]} 8. Nbd2 {[%clk
0:02:54.4]} 8... O-O {[%clk 0:02:56.3]} 9. h3 {[%clk 0:02:53.4]} 9... Bb6 {[%clk
0:02:54.5]} 10. Re1 {[%clk 0:02:53.5]} 10... Ne7 {[%clk 0:02:54.6]} 11. Nf1
{[%clk 0:02:53.3]} 11... Ng6 {[%clk 0:02:54.7]} 12. Ng3 {[%clk 0:02:53.1]} 12...
Re8 {[%clk 0:02:48.2]} 13. d4 {[%clk 0:02:51.6]} 13... Bb7 {[%clk 0:02:34.5]}
14. Ng5 {[%clk 0:02:19.7]} 14... Rf8 {[%clk 0:02:29.1]} 15. Bc2 {[%clk
0:01:58.1]} 15... h6 {[%clk 0:02:24.9]} 16. Nf3 {[%clk 0:01:58.1]} 16... c5
{[%clk 0:02:19.8]} 17. d5 {[%clk 0:01:48.5]} 17... c4 {[%clk 0:02:19.3]} 18. Nf5
{[%clk 0:01:44.4]} 18... Bc8 {[%clk 0:02:17.1]} 19. g4 {[%clk 0:01:35.3]} 19...
Nf4 {[%clk 0:02:08.9]} 20. Bxf4 {[%clk 0:01:27.6]} 20... exf4 {[%clk 0:02:08.2]}
21. Qd2 {[%clk 0:01:27.9]} 21... Bxf5 {[%clk 0:01:14.5]} 22. exf5 {[%clk
0:01:25]} 22... Qc7 {[%clk 0:00:56.7]} 23. Qxf4 {[%clk 0:01:01.7]} 23... Nxd5
{[%clk 0:00:56.4]} 24. Qg3 {[%clk 0:00:55.7]} 24... Nf6 {[%clk 0:00:46.9]} 25.
h4 {[%clk 0:00:41.8]} 25... Qc5 {[%clk 0:00:23.7]} 26. Nd4 {[%clk 0:00:29.2]}
26... Rfe8 {[%clk 0:00:21.3]} 27. g5 {[%clk 0:00:27.8]} 27... hxg5 {[%clk
0:00:20.1]} 28. hxg5 {[%clk 0:00:28.7]} 28... Nd5 {[%clk 0:00:16.6]} 29. f6
{[%clk 0:00:27.3]} 29... Re5 {[%clk 0:00:08.2]} 30. Qh4 {[%clk 0:00:21.2]} 1-0